fUST/lending_fUST_20250615
["ID","MTS","AMOUNT","RATE_DAILY","PERIOD"]
[365818915,1749936633633,-430.0,0.00021917,4]
[365818916,1749936633643,-460.0,0.00021917,4]
[365818917,1749936633652,-506.0,0.00021917,4]
[365818918,1749936633661,-460.0,0.00021917,4]
[365818919,1749936633671,-430.0,0.00021917,4]
[365818920,1749936633680,-440.0,0.00021917,4]
[365818921,1749936633689,-460.0,0.00021917,4]
[365818922,1749936633698,-430.0,0.00021917,4]
[365818923,1749936633707,-460.0,0.00021917,4]
[365818924,1749936633717,-460.0,0.00021917,4]
[365818925,1749936633726,-460.0,0.00021917,4]
[365818926,1749936633735,-460.0,0.00021917,4]
[365818927,1749936633744,-500.0,0.00021917,4]
[365818928,1749936633754,-500.0,0.00021917,4]
[365818929,1749936633763,-460.0,0.00021917,4]
[365818930,1749936633772,-460.0,0.00021917,4]
[365818931,1749936633781,-460.0,0.00021917,4]
[365818932,1749936633791,-460.0,0.00021917,4]
[365818933,1749936633800,-371.93817108,0.00021917,4]
[365818934,1749936633809,-430.0,0.00021917,4]
[365818935,1749936633818,-440.0,0.00021917,4]
[365818936,1749936633827,-430.0,0.00021917,4]
[365818937,1749936633836,-460.0,0.00021917,4]
[365818938,1749936633846,-378.77848986,0.00021917,4]
[365818939,1749936633855,-543.81,0.00021917,4]
[365818940,1749936633865,-436.4102822,0.00021917,4]
[365818941,1749936633874,-460.0,0.00021917,4]
[365818942,1749936633884,-460.0,0.00021917,4]
[365818943,1749936633893,-460.0,0.00021917,4]
[365818944,1749936633902,-430.0,0.00021917,4]
[365818945,1749936633911,-168.56982998,0.00021917,4]
[365818946,1749936633920,-460.0,0.00021917,4]
[365818947,1749936633930,-460.0,0.00021917,4]
[365818948,1749936633939,-460.0,0.00021917,4]
[365818949,1749936633948,-570.56,0.00021917,4]
[365818950,1749936633957,-430.0,0.00021917,4]
[365818951,1749936633966,-460.0,0.00021917,4]
[365818952,1749936633976,-460.0,0.00021917,4]
[365818953,1749936633985,-381.4688784,0.00021917,4]
[365818954,1749936633995,-418.3081927,0.00021917,4]
[365818955,1749936634004,-454.53548786,0.00021917,4]
[365818956,1749936634014,-430.0,0.00021917,4]
[365818957,1749936634025,-460.0,0.00021917,4]
[365818958,1749936634038,-460.0,0.00021917,4]
[365818959,1749936634048,-460.0,0.00021917,4]
[365818960,1749936634057,-460.0,0.00021917,4]
[365818961,1749936634066,-460.0,0.00021917,4]
[365818962,1749936634075,-1233.19,0.00021917,4]
[365818963,1749936634084,-460.0,0.00021917,4]
[365818964,1749936634094,-409.1624014,0.00021917,4]
[365818965,1749936634103,-500.0,0.00021917,4]
[365818966,1749936634113,-500.0,0.00021917,4]
[365818967,1749936634122,-500.0,0.00021917,4]
[365818968,1749936634132,-460.0,0.00021917,4]
[365818969,1749936634141,-460.0,0.00021917,4]
[365818970,1749936634151,-460.0,0.00021917,4]
[365818971,1749936634160,-460.0,0.00021917,4]
[365818972,1749936634170,-430.0,0.00021917,4]
[365818973,1749936634179,-544.59,0.00021917,4]
[365818974,1749936634189,-455.12939596,0.00021917,4]
[365818975,1749936634198,-460.0,0.00021917,4]
[365818976,1749936634208,-460.0,0.00021917,4]
[365818977,1749936634218,-460.0,0.00021917,4]
[365818978,1749936634228,-404.55494655,0.00021917,4]
[365818979,1749936634237,-460.0,0.00021917,4]
[365818980,1749936634248,-460.0,0.00021917,4]
[365818981,1749936634258,-460.0,0.00021917,4]
[365818982,1749936634267,-430.0,0.00021917,4]
[365818983,1749936634277,-460.0,0.00021917,4]
[365818984,1749936634287,-219.42145032,0.00021917,4]
[365818985,1749936634296,-460.0,0.00021917,4]
[365818986,1749936634306,-396.57314751,0.00021917,4]
[365818987,1749936634315,-460.0,0.00021917,4]
[365818988,1749936634324,-729.96,0.00021917,4]
[365818989,1749936634334,-223.53114285,0.00021917,4]
[365818990,1749936634344,-409.60711294,0.00021917,4]
[365818991,1749936634353,-460.0,0.00021917,4]
[365818992,1749936634363,-392.08601506,0.00021917,4]
[365818993,1749936634372,-460.0,0.00021917,4]
[365818994,1749936634381,-460.0,0.00021917,4]
[365818995,1749936634390,-426.95562546,0.00021917,4]
[365818996,1749936634400,-897.18,0.00021917,4]
[365818997,1749936634409,-460.0,0.00021917,4]
[365818998,1749936634417,-460.0,0.00021917,4]
[365818999,1749936634427,-430.0,0.00021917,4]
[365819000,1749936634435,-430.0,0.00021917,4]
[365819001,1749936634444,-460.0,0.00021917,4]
[365819002,1749936634454,-460.0,0.00021917,4]
[365819003,1749936634463,-430.0,0.00021917,4]
[365819004,1749936634472,-460.0,0.00021917,4]
[365819005,1749936634481,-430.0,0.00021917,4]
[365819006,1749936634490,-668.0,0.00021917,4]
[365819007,1749936634500,-460.0,0.00021917,4]
[365819008,1749936634509,-460.0,0.00021917,4]
[365819009,1749936634518,-460.0,0.00021917,4]
[365819010,1749936634528,-430.0,0.00021917,4]
[365819011,1749936634537,-460.0,0.00021917,4]
[365819012,1749936634547,-1052.05,0.00021917,4]
[365819013,1749936634556,-460.0,0.00021917,4]
[365819014,1749936634565,-460.0,0.00021917,4]
[365819015,1749936634574,-2860.16,0.00021917,4]
[365819016,1749936634584,-460.0,0.00021917,4]
[365819017,1749936634593,-818.13,0.00021917,4]
[365819018,1749936634602,-450.0,0.00021917,4]
[365819019,1749936634611,-2915.41,0.00021917,4]
[365819020,1749936634619,-460.0,0.00021917,4]
[365819021,1749936634628,-573.65587134,0.00021917,4]
[365819022,1749936634637,-898.11,0.00021917,4]
[365819023,1749936634647,-460.0,0.00021917,4]
[365819024,1749936634656,-460.0,0.00021917,4]
[365819025,1749936634665,-1060.58,0.00021917,4]
[365819026,1749936634674,-763.87,0.00021917,4]
[365819027,1749936634684,-630.41,0.00021917,4]
[365819028,1749936634693,-460.0,0.00021917,4]
[365819029,1749936634702,-460.0,0.00021917,4]
[365819030,1749936634711,-460.0,0.00021917,4]
[365819031,1749936634720,-430.0,0.00021917,4]
[365819032,1749936634828,-460.0,0.00021917,4]
[365819033,1749936634851,-460.0,0.00021917,4]
[365819034,1749936634861,-430.0,0.00021917,4]
[365819035,1749936634871,-1174.76,0.00021917,4]
[365819036,1749936634881,-420.0,0.00021917,4]
[365819037,1749936634890,-460.0,0.00021917,4]
[365819038,1749936634901,-2315.37,0.00021917,4]
[365819039,1749936634911,-460.0,0.00021917,4]
[365819040,1749936634921,-430.0,0.00021917,4]
[365819041,1749936634932,-430.0,0.00021917,4]
[365819042,1749936634943,-1981.44,0.00021917,4]
[365819043,1749936634953,-460.0,0.00021917,4]
[365819044,1749936634962,-460.0,0.00021917,4]
[365819045,1749936634972,-430.0,0.00021917,4]
[365819046,1749936634981,-466.51,0.00021917,4]
[365819047,1749936634991,-430.0,0.00021917,4]
[365819048,1749936635000,-460.0,0.00021917,4]
[365819049,1749936635010,-325.99500742,0.00021917,4]
[365819050,1749936635019,-460.0,0.00021917,4]
[365819051,1749936635030,-3090.41,0.00021917,4]
[365819052,1749936635040,-460.0,0.00021917,4]
[365819053,1749936635050,-460.0,0.00021917,4]
[365819054,1749936635059,-761.68,0.00021917,4]
[365819055,1749936635069,-460.0,0.00021917,4]
[365819056,1749936635078,-460.0,0.00021917,2]
[365819057,1749936635087,-3332.75,0.00021917,4]
[365819058,1749936635097,-460.0,0.00021917,4]
[365819059,1749936635106,-1358.58,0.00021917,4]
[365819060,1749936635115,-578.27,0.00021917,4]
[365819061,1749936635125,-460.0,0.00021917,4]
[365819062,1749936635134,-360.0,0.00021917,4]
[365819063,1749936635143,-460.0,0.00021917,4]
[365819064,1749936635153,-460.0,0.00021917,4]
[365819065,1749936635163,-460.0,0.00021917,4]
[365819066,1749936635172,-460.0,0.00021917,4]
[365819067,1749936635182,-460.0,0.00021917,4]
[365819068,1749936635192,-367.67524513,0.00021917,4]
[365819069,1749936635201,-460.0,0.00021917,4]
[365819070,1749936635211,-500.0,0.00021917,4]
[365819071,1749936635220,-460.0,0.00021917,4]
[365819072,1749936635230,-500.0,0.00021917,4]
[365819073,1749936635239,-500.0,0.00021917,4]
[365819074,1749936635249,-500.0,0.00021917,4]
[365819075,1749936635258,-422.08,0.00021917,4]
[365819076,1749936635268,-460.0,0.00021917,4]
[365819077,1749936635278,-460.0,0.00021917,4]
[365819078,1749936635287,-2093.94,0.00021917,4]
[365819079,1749936635297,-522.27,0.00021917,4]
[365819080,1749936635306,-460.0,0.00021917,4]
[365819081,1749936635315,-1328.94,0.00021917,4]
[365819082,1749936635325,-565.68,0.00021917,4]
[365819083,1749936635335,-440.0,0.00021917,4]
[365819084,1749936635345,-460.0,0.00021917,4]
[365819085,1749936635355,-2178.56,0.00021917,4]
[365819086,1749936635364,-460.0,0.00021917,4]
[365819087,1749936635373,-535.77,0.00021917,4]
[365819088,1749936635383,-460.0,0.00021917,4]
[365819089,1749936635392,-1202.63,0.00021917,4]
[365819090,1749936635402,-460.0,0.00021917,4]
[365819091,1749936635411,-450.0,0.00021917,4]
[365819092,1749936635421,-460.0,0.00021917,4]
[365819093,1749936635430,-1492.08,0.00021917,4]
[365819094,1749936635439,-460.0,0.00021917,4]
[365819095,1749936635448,-3266.17,0.00021917,4]
[365819096,1749936635459,-460.0,0.00021917,4]
[365819097,1749936635468,-430.0,0.00021917,4]
[365819098,1749936635478,-460.0,0.00021917,4]
[365819099,1749936635488,-1053.67,0.00021917,4]
[365819100,1749936635497,-460.0,0.00021917,4]
[365819101,1749936635506,-460.0,0.00021917,4]
[365819102,1749936635515,-505.67096782,0.00021973,2]
[365819103,1749936635524,-500.0,0.00021973,2]
[365819104,1749936635533,-505.40322186,0.00021973,2]
[365819105,1749936635542,-500.0,0.00021973,2]
[365819106,1749936635550,-512.8240996,0.00021973,2]
[365819107,1749936635560,-502.10807726,0.00021973,2]
[365819108,1749936635568,-501.53825745,0.00021973,2]
[365819109,1749936635577,-500.24466392,0.00021973,2]
[365819110,1749936635586,-386.53261844,0.00022,2]
[365819111,1749936635596,-574.38998016,0.00022003,6]
[365819112,1749936635605,-194.0,0.00022014,2]
[365819113,1749936635613,-574.38998016,0.00022107,6]
[365819114,1749936635622,-420.99275203,0.00022113,4]
[365819115,1749936635631,-500.0,0.00022173,2]
[365819116,1749936635640,-500.89279523,0.00022173,2]
[365819117,1749936635649,-265.21500939,0.00022173,2]
[365819118,1749936635658,-500.0,0.00022173,2]
[365819119,1749936635667,-507.7224305,0.00022173,2]
[365819120,1749936635677,-506.63167731,0.00022173,2]
[365819121,1749936635686,-500.67063591,0.00022173,2]
[365819122,1749936635694,-500.0,0.00022173,2]
[365819123,1749936635703,-500.0,0.00022173,2]
[365819124,1749936635712,-500.0,0.00022173,2]
[365819125,1749936635721,-500.0,0.00022173,2]
[365819126,1749936635730,-502.21431889,0.00022173,2]
[365819127,1749936635739,-501.31611562,0.00022173,2]
[365819128,1749936635748,-156.51692499,0.00022173,2]
[365819129,1749936635757,-500.0,0.00022173,2]
[365819130,1749936635766,-500.09465065,0.00022173,2]
[365819131,1749936635775,-500.0,0.00022173,2]
[365819132,1749936635784,-500.0,0.00022173,2]
[365819133,1749936635793,-500.0,0.00022173,2]
[365819134,1749936635802,-160.0,0.0002219,2]
[365819135,1749936635811,-237.66934147,0.00022191,4]
[365819136,1749936635820,-494.8,0.00022191,4]
[365819137,1749936635829,-390.0,0.00022191,4]
[365819138,1749936635838,-349.0,0.00022191,4]
[365819139,1749936635849,-448.33,0.00022191,4]
[365819140,1749936635859,-460.0,0.00022191,4]
[365819141,1749936635868,-430.0,0.00022191,4]
[365819142,1749936635876,-318.80190651,0.00022191,4]
[365819143,1749936635885,-390.0,0.00022191,4]
[365819144,1749936635895,-410.0,0.00022191,4]
[365819145,1749936635904,-460.0,0.00022191,4]
[365819146,1749936635913,-400.0,0.00022191,4]
[365819147,1749936635922,-404.11848153,0.00022191,4]
[365819148,1749936635931,-460.0,0.00022191,4]
[365819149,1749936635940,-746.76,0.00022191,4]
[365819150,1749936635950,-558.72,0.00022191,4]
[365819151,1749936635958,-400.0,0.00022191,4]
[365819152,1749936635967,-400.0,0.00022191,4]
[365819153,1749936635977,-460.0,0.00022191,4]
[365819154,1749936635989,-460.0,0.00022191,4]
[365819155,1749936635999,-460.0,0.00022191,4]
[365819156,1749936636008,-595.33,0.00022191,4]
[365819157,1749936636018,-460.0,0.00022191,4]
[365819158,1749936636030,-460.0,0.00022191,4]
[365819159,1749936636041,-400.0,0.00022191,4]
[365819160,1749936636052,-430.0,0.00022191,4]
[365819161,1749936636061,-390.0,0.00022191,4]
[365819162,1749936636071,-460.0,0.00022191,4]
[365819163,1749936636080,-420.0,0.00022191,4]
[365819164,1749936636089,-460.0,0.00022191,4]
[365819165,1749936636099,-400.0,0.00022191,4]
[365819166,1749936636109,-460.0,0.00022191,4]
[365819167,1749936636119,-460.0,0.00022191,4]
[365819168,1749936636128,-460.0,0.00022191,4]
[365819169,1749936636137,-400.0,0.00022191,4]
[365819170,1749936636146,-460.0,0.00022191,4]
[365819171,1749936636156,-400.0,0.00022191,4]
[365819172,1749936636166,-400.0,0.00022191,4]
[365819173,1749936636174,-460.0,0.00022191,4]
[365819174,1749936636184,-320.0,0.00022191,4]
[365819175,1749936636194,-460.0,0.00022191,4]
[365819176,1749936636203,-460.0,0.00022191,4]
[365819177,1749936636215,-460.0,0.00022191,4]
[365819178,1749936636224,-460.0,0.00022191,4]
[365819179,1749936636234,-400.0,0.00022191,4]
[365819180,1749936636244,-330.0,0.00022191,4]
[365819181,1749936636253,-400.0,0.00022191,4]
[365819182,1749936636262,-460.0,0.00022191,4]
[365819183,1749936636271,-444.15458438,0.00022191,4]
[365819184,1749936636280,-400.0,0.00022191,4]
[365819185,1749936636289,-460.0,0.00022191,4]
[365819186,1749936636299,-460.0,0.00022191,4]
[365819187,1749936636308,-400.0,0.00022191,4]
[365819188,1749936636317,-460.0,0.00022191,4]
[365819189,1749936636327,-1319.82,0.00022191,4]
[365819190,1749936636336,-400.0,0.00022191,4]
[365819191,1749936636346,-400.0,0.00022191,4]
[365819192,1749936636355,-460.0,0.00022191,4]
[365819193,1749936636364,-460.0,0.00022191,4]
[365819194,1749936636374,-400.0,0.00022191,4]
[365819195,1749936636384,-460.0,0.00022191,4]
[365819196,1749936636393,-506.0,0.00022191,4]
[365819197,1749936636402,-460.0,0.00022191,4]
[365819198,1749936636411,-460.0,0.00022191,4]
[365819199,1749936636420,-400.0,0.00022191,4]
[365819200,1749936636429,-460.0,0.00022191,4]
[365819201,1749936636438,-400.0,0.00022191,4]
[365819202,1749936636447,-460.0,0.00022191,4]
[365819203,1749936636458,-400.0,0.00022191,4]
[365819204,1749936636468,-460.0,0.00022191,4]
[365819205,1749936636478,-460.0,0.00022191,4]
[365819206,1749936636487,-232.68600831,0.00022191,4]
[365819207,1749936636496,-460.0,0.00022191,4]
[365819208,1749936636505,-400.0,0.00022191,4]
[365819209,1749936636514,-183.86314245,0.00022191,4]
[365819210,1749936636523,-460.0,0.00022191,4]
[365819211,1749936636532,-460.0,0.00022191,4]
[365819212,1749936636541,-400.0,0.00022191,4]
[365819213,1749936636551,-525.76,0.00022191,4]
[365819214,1749936636563,-460.0,0.00022191,4]
[365819215,1749936636573,-460.0,0.00022191,4]
[365819216,1749936636582,-460.0,0.00022191,4]
[365819217,1749936636591,-400.0,0.00022191,4]
[365819218,1749936636601,-460.0,0.00022191,4]
[365819219,1749936636610,-430.0,0.00022191,4]
[365819220,1749936636619,-400.0,0.00022191,4]
[365819221,1749936636628,-1233.19,0.00022191,4]
[365819222,1749936636637,-460.0,0.00022191,4]
[365819223,1749936636646,-460.0,0.00022191,4]
[365819224,1749936636655,-460.0,0.00022191,4]
[365819225,1749936636665,-430.0,0.00022191,4]
[365819226,1749936636674,-460.0,0.00022191,4]
[365819227,1749936636684,-544.59,0.00022191,4]
[365819228,1749936636693,-400.0,0.00022191,4]
[365819229,1749936636703,-400.0,0.00022191,4]
[365819230,1749936636711,-400.0,0.00022191,4]
[365819231,1749936636721,-400.0,0.00022191,4]
[365819232,1749936636730,-460.0,0.00022191,4]
[365819233,1749936636739,-460.0,0.00022191,4]
[365819234,1749936636748,-198.50818203,0.00022191,4]
[365819235,1749936636757,-400.0,0.00022191,4]
[365819236,1749936636766,-354.97672165,0.00022191,4]
[365819237,1749936636775,-729.96,0.00022191,4]
[365819238,1749936636789,-460.0,0.00022191,4]
[365819239,1749936636799,-460.0,0.00022191,4]
[365819240,1749936636808,-400.0,0.00022191,4]
[365819241,1749936636817,-897.18,0.00022191,4]
[365819242,1749936636826,-460.0,0.00022191,4]
[365819243,1749936636835,-390.0,0.00022191,4]
[365819244,1749936636844,-460.0,0.00022191,4]
[365819245,1749936636854,-460.0,0.00022191,4]
[365819246,1749936636863,-460.0,0.00022191,4]
[365819247,1749936636872,-668.0,0.00022191,4]
[365819248,1749936636882,-460.0,0.00022191,4]
[365819249,1749936636891,-460.0,0.00022191,4]
[365819250,1749936636900,-460.0,0.00022191,4]
[365819251,1749936636910,-460.0,0.00022191,4]
[365819252,1749936636919,-1052.05,0.00022191,4]
[365819253,1749936636928,-460.0,0.00022191,4]
[365819254,1749936636938,-460.0,0.00022191,4]
[365819255,1749936636947,-2860.16,0.00022191,4]
[365819256,1749936636957,-400.0,0.00022191,4]
[365819257,1749936636966,-818.13,0.00022191,4]
[365819258,1749936636975,-2915.41,0.00022191,4]
[365819259,1749936636985,-460.0,0.00022191,4]
[365819260,1749936636994,-898.11,0.00022191,4]
[365819261,1749936637004,-460.0,0.00022191,4]
[365819262,1749936637013,-430.0,0.00022191,4]
[365819263,1749936637022,-173.15664807,0.00022191,4]
[365819264,1749936637158,-887.42335193,0.00022191,4]
[365819265,1749936637167,-763.87,0.00022191,4]
[365819266,1749936637176,-630.41,0.00022191,4]
[365819267,1749936637186,-460.0,0.00022191,4]
[365819268,1749936637196,-460.0,0.00022191,4]
[365819269,1749936637205,-430.0,0.00022191,4]
[365819270,1749936637215,-460.0,0.00022191,4]
[365819271,1749936637225,-154.14471282,0.00022191,4]
[365819272,1749936637242,-305.85528718,0.00022191,4]
[365819273,1749936637252,-1174.76,0.00022191,4]
[365819274,1749936637263,-295.59931388,0.00022191,4]
[365819275,1749936637275,-124.40068612,0.00022191,4]
[365819276,1749936637285,-259.7160823,0.00022191,4]
[365819277,1749936637302,-522.004777,0.00022191,4]
[365819278,1749936637314,-1533.6491407,0.00022191,4]
[365819279,1749936637324,-400.0,0.00022191,4]
[365819280,1749936637334,-1981.44,0.00022191,4]
[365819281,1749936637343,-400.0,0.00022191,4]
[365819282,1749936637353,-400.0,0.00022191,4]
[365819283,1749936637363,-466.51,0.00022191,4]
[365819284,1749936637372,-400.0,0.00022191,4]
[365819285,1749936637382,-460.0,0.00022191,4]
[365819286,1749936637391,-3090.41,0.00022191,4]
[365819287,1749936637513,-460.0,0.00022191,4]
[365819288,1749936637523,-254.853538,0.00022191,4]
[365819289,1749936637533,-761.68,0.00022191,4]
[365819290,1749936637543,-460.0,0.00022191,4]
[365819291,1749936637552,-460.0,0.00022191,2]
[365819292,1749936637563,-3332.75,0.00022191,4]
[365819293,1749936637573,-460.0,0.00022191,4]
[365819294,1749936637582,-1358.58,0.00022191,4]
[365819296,1749936637592,-578.27,0.00022191,4]
[365819298,1749936637603,-400.0,0.00022191,4]
[365819299,1749936637613,-460.0,0.00022191,4]
[365819300,1749936637623,-460.0,0.00022191,4]
[365819301,1749936637633,-460.0,0.00022191,4]
[365819302,1749936637643,-330.0,0.00022191,4]
[365819303,1749936637653,-320.0,0.00022191,4]
[365819304,1749936637662,-460.0,0.00022191,4]
[365819305,1749936637672,-400.0,0.00022191,4]
[365819306,1749936637681,-400.0,0.00022191,4]
[365819307,1749936637690,-460.0,0.00022191,4]
[365819308,1749936637700,-2093.94,0.00022191,4]
[365819309,1749936637709,-460.0,0.00022191,4]
[365819310,1749936637718,-522.27,0.00022191,4]
[365819312,1749936637729,-1328.94,0.00022191,4]
[365819313,1749936637739,-565.68,0.00022191,4]
[365819314,1749936637749,-420.0,0.00022191,4]
[365819315,1749936637759,-2178.56,0.00022191,4]
[365819316,1749936637768,-535.77,0.00022191,4]
[365819317,1749936637778,-400.0,0.00022191,4]
[365819318,1749936637789,-1202.63,0.00022191,4]
[365819319,1749936637799,-320.0,0.00022191,4]
[365819320,1749936637808,-400.0,0.00022191,4]
[365819322,1749936637819,-1492.08,0.00022191,4]
[365819324,1749936637828,-460.0,0.00022191,4]
[365819325,1749936637838,-3266.17,0.00022191,4]
[365819326,1749936637847,-460.0,0.00022191,4]
[365819327,1749936637858,-460.0,0.00022191,4]
[365819328,1749936637868,-1053.67,0.00022191,4]
[365819330,1749936637878,-574.38998016,0.0002221,6]
[365819331,1749936637887,-166.26778905,0.00022228,2]
[365819332,1749936637897,-500.0,0.0002225,2]
[365819333,1749936637906,-809.95,0.00022254,3]
[365819334,1749936637917,-168.0,0.000223,2]
[365819335,1749936637926,-574.38998016,0.00022314,7]
[365819337,1749936637935,-809.95,0.00022354,3]
[365819338,1749936637945,-574.38998016,0.00022417,7]
[365819339,1749936637959,-197.0,0.00022452,2]
[365819340,1749936637968,-809.95,0.00022454,5]
[365819341,1749936637978,-330.0,0.00022465,4]
[365819343,1749936637988,-370.0,0.00022465,4]
[365819344,1749936637998,-460.0,0.00022465,4]
[365819346,1749936638007,-746.76,0.00022465,4]
[365819348,1749936638017,-360.0,0.00022465,4]
[365819349,1749936638027,-460.0,0.00022465,4]
[365819350,1749936638041,-460.0,0.00022465,4]
[365819351,1749936638050,-595.33,0.00022465,4]
[365819352,1749936638060,-460.0,0.00022465,4]
[365819353,1749936638073,-460.0,0.00022465,4]
[365819354,1749936638083,-460.0,0.00022465,4]
[365819355,1749936638092,-320.0,0.00022465,4]
[365819356,1749936638103,-460.0,0.00022465,4]
[365819357,1749936638112,-460.0,0.00022465,4]
[365819358,1749936638122,-400.0,0.00022465,4]
[365819359,1749936638132,-460.0,0.00022465,4]
[365819360,1749936638142,-460.0,0.00022465,4]
[365819361,1749936638152,-460.0,0.00022465,4]
[365819362,1749936638161,-460.0,0.00022465,4]
[365819363,1749936638171,-460.0,0.00022465,4]
[365819364,1749936638181,-460.0,0.00022465,4]
[365819365,1749936638192,-400.0,0.00022465,4]
[365819366,1749936638201,-460.0,0.00022465,4]
[365819367,1749936638211,-350.0,0.00022465,4]
[365819368,1749936638221,-460.0,0.00022465,4]
[365819369,1749936638231,-1319.82,0.00022465,4]
[365819370,1749936638242,-460.0,0.00022465,4]
[365819372,1749936638253,-460.0,0.00022465,4]
[365819373,1749936638262,-370.0,0.00022465,4]
[365819374,1749936638272,-506.0,0.00022465,4]
[365819375,1749936638281,-370.0,0.00022465,4]
[365819376,1749936638290,-460.0,0.00022465,4]
[365819377,1749936638300,-460.0,0.00022465,4]
[365819378,1749936638309,-430.0,0.00022465,4]
[365819379,1749936638320,-390.0,0.00022465,4]
[365819380,1749936638330,-460.0,0.00022465,4]
[365819381,1749936638339,-460.0,0.00022465,4]
[365819382,1749936638349,-460.0,0.00022465,4]
[365819383,1749936638359,-460.0,0.00022465,4]
[365819384,1749936638368,-460.0,0.00022465,4]
[365819385,1749936638378,-460.0,0.00022465,4]
[365819386,1749936638387,-460.0,0.00022465,4]
[365819387,1749936638396,-460.0,0.00022465,4]
[365819388,1749936638406,-1233.19,0.00022465,4]
[365819389,1749936638415,-460.0,0.00022465,4]
[365819390,1749936638424,-460.0,0.00022465,4]
[365819391,1749936638433,-460.0,0.00022465,4]
[365819392,1749936638443,-460.0,0.00022465,4]
[365819393,1749936638452,-544.59,0.00022465,4]
[365819394,1749936638462,-460.0,0.00022465,4]
[365819395,1749936638471,-400.0,0.00022465,4]
[365819396,1749936638480,-729.96,0.00022465,4]
[365819397,1749936638490,-460.0,0.00022465,4]
[365819398,1749936638499,-460.0,0.00022465,4]
[365819399,1749936638509,-897.18,0.00022465,4]
[365819400,1749936638518,-460.0,0.00022465,4]
[365819401,1749936638528,-460.0,0.00022465,4]
[365819402,1749936638538,-430.0,0.00022465,4]
[365819403,1749936638547,-390.0,0.00022465,4]
[365819404,1749936638557,-668.0,0.00022465,4]
[365819405,1749936638567,-230.0,0.00022465,4]
[365819406,1749936638576,-460.0,0.00022465,4]
[365819407,1749936638586,-460.0,0.00022465,4]
[365819408,1749936638595,-460.0,0.00022465,4]
[365819409,1749936638606,-1052.05,0.00022465,4]
[365819410,1749936638615,-380.0,0.00022465,4]
[365819411,1749936638626,-460.0,0.00022465,4]
[365819412,1749936638635,-2860.16,0.00022465,4]
[365819413,1749936638644,-818.13,0.00022465,4]
[365819414,1749936638654,-460.0,0.00022465,4]
[365819415,1749936638663,-2915.41,0.00022465,4]
[365819416,1749936638672,-898.11,0.00022465,4]
[365819417,1749936638681,-460.0,0.00022465,4]
[365819418,1749936638691,-1060.58,0.00022465,4]
[365819419,1749936638700,-763.87,0.00022465,4]
[365819420,1749936638710,-630.41,0.00022465,4]
[365819421,1749936638719,-460.0,0.00022465,4]
[365819422,1749936638728,-460.0,0.00022465,4]
[365819423,1749936638738,-460.0,0.00022465,4]
[365819424,1749936638747,-1174.76,0.00022465,4]
[365819425,1749936638756,-2315.37,0.00022465,4]